fUSD/lending_fUSD_20240104
["ID","MTS","AMOUNT","RATE_DAILY","PERIOD"]
[310173480,1704388262646,-500.0,0.00033698,2]
[310173481,1704388262656,-500.0,0.00033698,2]
[310173482,1704388262666,-500.0,0.00033698,2]
[310173483,1704388262677,-500.0,0.00033698,2]
[310173484,1704388262687,-594.07,0.00033698,2]
[310173485,1704388262698,-500.0,0.00033698,2]
[310173486,1704388262707,-500.0,0.00033698,2]
[310173487,1704388262718,-259.73,0.00033698,2]
[310173488,1704388262727,-500.0,0.00033698,2]
[310173489,1704388262738,-500.0,0.00033698,2]
[310173490,1704388262748,-500.0,0.00033698,2]
[310173491,1704388262758,-345.06155072,0.00033698,2]
[310173492,1704388262769,-624.44002467,0.00033698,2]
[310173493,1704388262779,-500.0,0.00033698,2]
[310173494,1704388262790,-500.0,0.00033698,2]
[310173495,1704388262799,-500.0,0.00033698,2]
[310173496,1704388262809,-439.3211069,0.00033698,2]
[310173497,1704388262819,-500.0,0.00033698,2]
[310173498,1704388262829,-500.0,0.00033698,2]
[310173499,1704388262838,-413.54448594,0.00033698,2]
[310173500,1704388262847,-500.0,0.00033698,2]
[310173501,1704388262857,-552.89807344,0.00033698,2]
[310173502,1704388262869,-500.0,0.00033698,2]
[310173503,1704388262878,-500.0,0.00033698,2]
[310173504,1704388262887,-500.0,0.00033698,2]
[310173505,1704388262897,-500.0,0.00033698,2]
[310173506,1704388262906,-500.0,0.00033698,2]
[310173507,1704388262917,-500.0,0.00033698,2]
[310173508,1704388262928,-500.0,0.00033698,2]
[310173509,1704388262938,-261.92372456,0.00033698,2]
[310173510,1704388262947,-500.0,0.00033698,2]
[310173511,1704388262957,-629.7,0.00033698,2]
[310173512,1704388262967,-500.0,0.00033698,2]
[310173513,1704388262983,-500.0,0.00033698,2]
[310173514,1704388262993,-500.0,0.00033698,2]
[310173515,1704388263003,-500.0,0.00033698,2]
[310173516,1704388263013,-500.0,0.00033698,2]
[310173517,1704388263023,-555.90579431,0.00033698,2]
[310173518,1704388263032,-500.0,0.00033698,2]
[310173519,1704388263042,-500.0,0.00033698,2]
[310173520,1704388263053,-855.21,0.00033698,2]
[310173521,1704388263066,-551.86,0.00033698,2]
[310173522,1704388263075,-500.0,0.00033698,2]
[310173523,1704388263085,-500.0,0.00033698,2]
[310173524,1704388263095,-500.0,0.00033698,2]
[310173525,1704388263104,-500.0,0.00033698,2]
[310173526,1704388263114,-500.0,0.00033698,2]
[310173527,1704388263124,-500.0,0.00033698,2]
[310173528,1704388263134,-500.0,0.00033698,2]
[310173529,1704388263143,-500.0,0.00033698,2]
[310173530,1704388263153,-500.0,0.00033698,2]
[310173531,1704388263163,-500.0,0.00033698,2]
[310173532,1704388263173,-500.0,0.00033698,2]
[310173533,1704388263182,-500.0,0.00033698,2]
[310173534,1704388263192,-500.0,0.00033698,2]
[310173535,1704388263201,-500.0,0.00033698,2]
[310173536,1704388263211,-500.0,0.00033698,2]
[310173537,1704388263221,-500.0,0.00033698,2]
[310173538,1704388263231,-500.0,0.00033698,2]
[310173539,1704388263240,-500.0,0.00033698,2]
[310173540,1704388263249,-500.0,0.00033698,2]
[310173541,1704388263259,-500.0,0.00033698,2]
[310173542,1704388263269,-500.0,0.00033698,2]
[310173543,1704388263278,-500.0,0.00033698,2]
[310173544,1704388263288,-500.0,0.00033698,2]
[310173545,1704388263298,-500.0,0.00033698,2]
[310173546,1704388263307,-500.0,0.00033698,2]
[310173547,1704388263317,-500.0,0.00033698,2]
[310173548,1704388263326,-500.0,0.00033698,2]
[310173549,1704388263337,-500.0,0.00033698,2]
[310173550,1704388263347,-500.0,0.00033698,2]
[310173551,1704388263357,-500.0,0.00033698,2]
[310173552,1704388263368,-500.0,0.00033698,2]
[310173553,1704388263378,-500.0,0.00033698,2]
[310173554,1704388263389,-500.0,0.00033698,2]
[310173555,1704388263399,-500.0,0.00033698,2]
[310173556,1704388263412,-523.21666342,0.00033698,2]
[310173557,1704388263422,-500.0,0.00033698,2]
[310173558,1704388263432,-200.01255009,0.00033698,2]
[310173559,1704388263443,-500.0,0.00033698,2]
[310173560,1704388263453,-500.0,0.00033698,2]
[310173561,1704388263464,-500.0,0.00033698,2]
[310173562,1704388263475,-500.0,0.00033698,2]
[310173563,1704388263486,-500.0,0.00033698,2]
[310173564,1704388263497,-500.0,0.00033698,2]
[310173565,1704388263511,-500.0,0.00033698,2]
[310173566,1704388263521,-500.0,0.00033698,2]
[310173567,1704388263531,-546.22,0.00033698,2]
[310173568,1704388263541,-603.38745415,0.00033698,2]
[310173569,1704388263551,-773.8,0.00033698,2]
[310173570,1704388263561,-500.0,0.00033698,2]
[310173571,1704388263571,-500.0,0.00033698,2]
[310173572,1704388263581,-500.0,0.00033698,2]
[310173573,1704388263590,-538.82686039,0.00033698,2]
[310173574,1704388263600,-500.0,0.00033698,2]
[310173575,1704388263610,-500.0,0.00033698,2]
[310173576,1704388263621,-500.0,0.00033698,2]
[310173577,1704388263631,-500.0,0.00033698,2]
[310173578,1704388263641,-500.0,0.00033698,2]
[310173579,1704388263651,-595.68611081,0.00033698,2]
[310173580,1704388263661,-500.0,0.00033698,2]
[310173581,1704388263671,-500.0,0.00033698,2]
[310173582,1704388263682,-552.73,0.00033698,2]
[310173583,1704388263692,-500.0,0.00033698,2]
[310173584,1704388263702,-500.0,0.00033698,2]
[310173585,1704388263711,-500.0,0.00033698,2]
[310173586,1704388263721,-528.11134668,0.00033698,2]
[310173587,1704388263731,-500.0,0.00033698,2]
[310173588,1704388263741,-500.0,0.00033698,2]
[310173589,1704388263751,-500.0,0.00033698,2]
[310173590,1704388263762,-500.0,0.00033698,2]
[310173591,1704388263773,-500.0,0.00033698,2]
[310173592,1704388263784,-529.76,0.00033698,2]
[310173593,1704388263794,-500.0,0.00033698,2]
[310173594,1704388263803,-560.09035198,0.00033698,2]
[310173595,1704388263814,-500.0,0.00033698,2]
[310173596,1704388263825,-500.0,0.00033698,2]
[310173597,1704388263837,-383.31100695,0.00033698,2]
[310173598,1704388263847,-500.0,0.00033698,2]
[310173599,1704388263857,-500.0,0.00033698,2]
[310173600,1704388263868,-500.0,0.00033698,2]
[310173601,1704388263879,-500.0,0.00033698,2]
[310173602,1704388263889,-500.0,0.00033698,2]
[310173603,1704388263900,-221.98148319,0.00033698,2]
[310173604,1704388263910,-500.0,0.00033698,2]
[310173605,1704388263921,-500.0,0.00033698,2]
[310173606,1704388263933,-500.0,0.00033698,2]
[310173607,1704388263944,-219.23419769,0.00033698,2]
[310173608,1704388263954,-500.0,0.00033698,2]
[310173609,1704388263964,-158.2972999,0.00033698,2]
[310173610,1704388263974,-500.0,0.00033698,2]
[310173611,1704388263985,-500.0,0.00033698,2]
[310173612,1704388263996,-340.98203089,0.00033698,2]
[310173613,1704388264006,-150.0,0.00033698,2]
[310173614,1704388264016,-500.0,0.00033698,2]
[310173615,1704388264026,-500.0,0.00033698,2]
[310173616,1704388264037,-500.0,0.00033698,2]
[310173617,1704388264047,-500.0,0.00033698,2]
[310173618,1704388264058,-500.0,0.00033698,2]
[310173619,1704388264068,-500.0,0.00033698,2]
[310173620,1704388264079,-500.0,0.00033698,2]
[310173621,1704388264089,-500.0,0.00033698,2]
[310173622,1704388264099,-500.0,0.00033698,2]
[310173623,1704388264109,-500.0,0.00033698,2]
[310173624,1704388264121,-500.0,0.00033698,2]
[310173625,1704388264131,-500.0,0.00033698,2]
[310173626,1704388264142,-500.0,0.00033698,2]
[310173627,1704388264153,-500.0,0.00033698,2]
[310173628,1704388264165,-500.0,0.00033698,2]
[310173629,1704388264175,-500.0,0.00033698,2]
[310173630,1704388264185,-613.14521547,0.00033698,2]
[310173631,1704388264195,-500.0,0.00033698,2]
[310173632,1704388264204,-500.0,0.00033698,2]
[310173633,1704388264214,-500.0,0.00033698,2]
[310173634,1704388264224,-500.0,0.00033698,2]
[310173635,1704388264234,-506.08,0.00033698,2]
[310173636,1704388264244,-545.53,0.00033698,2]
[310173637,1704388264254,-500.0,0.00033698,2]
[310173638,1704388264263,-729.35,0.00033698,2]
[310173639,1704388264273,-500.0,0.00033698,2]
[310173640,1704388264283,-179.06645524,0.00033698,2]
[310173641,1704388264293,-523.56638745,0.00033698,2]
[310173642,1704388264302,-500.0,0.00033698,2]
[310173643,1704388264312,-925.3,0.00033698,2]
[310173644,1704388264322,-500.0,0.00033698,2]
[310173645,1704388264332,-565.52,0.00033698,2]
[310173646,1704388264341,-1635.82,0.00033698,2]
[310173647,1704388264351,-500.0,0.00033698,2]
[310173648,1704388264360,-500.0,0.00033698,2]
[310173649,1704388264373,-500.0,0.00033698,2]
[310173650,1704388264382,-500.0,0.00033698,2]
[310173651,1704388264391,-500.0,0.00033698,2]
[310173652,1704388264401,-3181.96,0.00033698,2]
[310173653,1704388264411,-500.0,0.00033698,2]
[310173654,1704388264420,-500.0,0.00033698,2]
[310173655,1704388264430,-500.0,0.00033698,2]
[310173656,1704388264439,-1581.86,0.00033698,2]
[310173657,1704388264449,-500.0,0.00033698,2]
[310173658,1704388264458,-500.0,0.00033698,2]
[310173659,1704388264468,-2373.55,0.00033698,2]
[310173660,1704388264477,-1294.73,0.00033698,2]
[310173661,1704388264487,-512.34,0.00033698,2]
[310173662,1704388264497,-500.0,0.00033698,2]
[310173663,1704388264507,-5687.06,0.00033698,2]
[310173664,1704388264516,-2614.25,0.00033698,2]
[310173665,1704388264526,-909.88,0.00033698,2]
[310173666,1704388264536,-1395.9,0.00033698,2]
[310173667,1704388264546,-500.0,0.00033698,2]
[310173668,1704388264558,-500.0,0.00033698,2]
[310173669,1704388264568,-500.0,0.00033698,2]
[310173670,1704388264578,-500.0,0.00033698,2]
[310173671,1704388264588,-877.48,0.00033698,2]
[310173672,1704388264598,-500.0,0.00033698,2]
[310173673,1704388264608,-2741.1,0.00033698,2]
[310173674,1704388264619,-1332.47,0.00033698,2]
[310173675,1704388264629,-2760.02,0.00033698,2]
[310173676,1704388264638,-2479.27,0.00033698,2]
[310173677,1704388264648,-500.0,0.00033698,2]
[310173678,1704388264659,-500.0,0.00033698,2]
[310173679,1704388264670,-2401.53,0.00033698,2]
[310173680,1704388264890,-1035.2,0.00033698,2]
[310173681,1704388264932,-500.0,0.00033698,2]
[310173682,1704388264943,-197.5111209,0.00033698,2]
[310173683,1704388264955,-500.0,0.00033698,2]
[310173684,1704388264965,-7321.07,0.00033698,2]
[310173685,1704388264978,-1526.89,0.00033698,2]
[310173686,1704388264988,-1435.67,0.00033698,2]
[310173687,1704388264998,-1790.06,0.00033698,2]
[310173688,1704388265007,-1452.18,0.00033698,2]
[310173689,1704388265017,-500.0,0.00033698,2]
[310173690,1704388265027,-500.0,0.00033698,2]
[310173691,1704388265037,-500.0,0.00033698,2]
[310173692,1704388265047,-500.0,0.00033698,2]
[310173693,1704388265060,-950.58,0.00033698,2]
[310173694,1704388265070,-500.0,0.00033698,2]
[310173695,1704388265079,-1182.95,0.00033698,2]
[310173696,1704388265089,-500.0,0.00033698,2]
[310173697,1704388265099,-500.0,0.00033698,2]
[310173698,1704388265109,-1692.82,0.00033698,2]
[310173699,1704388265120,-500.0,0.00033698,2]
[310173700,1704388265129,-1025.09,0.00033698,2]
[310173701,1704388265139,-886.84,0.00033698,2]
[310173702,1704388265149,-500.0,0.00033698,2]
[310173703,1704388265159,-508.83,0.00033698,2]
[310173704,1704388265169,-500.0,0.00033698,2]
[310173705,1704388265179,-622.54,0.00033698,2]
[310173706,1704388265189,-500.0,0.00033698,2]
[310173707,1704388265198,-502.63,0.00033698,2]
[310173708,1704388265209,-500.0,0.00033698,2]
[310173709,1704388265219,-4886.85,0.00033698,2]
[310173710,1704388265229,-2677.66,0.00033698,2]
[310173711,1704388265239,-500.0,0.00033698,2]
[310173712,1704388265249,-500.0,0.00033698,2]
[310173713,1704388265259,-500.0,0.00033698,2]
[310173714,1704388265269,-500.0,0.00033698,2]
[310173715,1704388265279,-500.0,0.00033698,2]
[310173716,1704388265289,-721.6,0.00033698,2]
[310173717,1704388265298,-3896.93,0.00033698,2]
[310173718,1704388265308,-500.0,0.00033698,2]
[310173719,1704388265318,-1547.88,0.00033698,2]
[310173720,1704388265327,-1482.83,0.00033698,2]
[310173721,1704388265337,-2114.1,0.00033698,2]
[310173722,1704388265348,-500.0,0.00033698,2]
[310173723,1704388265357,-5880.93,0.00033698,2]
[310173724,1704388265368,-946.51,0.00033698,2]
[310173725,1704388265378,-500.0,0.00033698,2]
[310173726,1704388265388,-500.0,0.00033698,2]
[310173727,1704388265397,-3014.91,0.00033698,2]
[310173728,1704388265407,-1887.8,0.00033698,2]
[310173729,1704388265417,-15735.01,0.00033698,2]
[310173730,1704388265426,-500.0,0.00033698,2]
[310173731,1704388265436,-585.38,0.00033698,2]
[310173732,1704388265446,-500.0,0.00033698,2]
[310173733,1704388265456,-543.94447957,0.00033698,2]
[310173734,1704388265467,-1633.79,0.00033698,2]
[310173735,1704388265477,-701.92,0.00033698,2]
[310173736,1704388265487,-500.0,0.00033698,2]
[310173737,1704388265496,-500.0,0.00033698,2]
[310173738,1704388265506,-671.3,0.00033698,2]
[310173739,1704388265515,-500.0,0.00033698,2]
[310173740,1704388265525,-794.02,0.00033698,2]
[310173741,1704388265535,-591.38,0.00033698,2]
[310173742,1704388265545,-500.0,0.00033698,2]
[310173743,1704388265555,-925.8,0.00033698,2]
[310173744,1704388265565,-5599.04,0.00033698,2]
[310173745,1704388265575,-500.0,0.00033698,2]
[310173746,1704388265585,-500.0,0.00033698,2]
[310173747,1704388265595,-500.0,0.00033698,2]
[310173748,1704388265605,-945.74,0.00033698,2]
[310173749,1704388265615,-500.0,0.00033698,2]
[310173750,1704388265625,-500.0,0.00033698,2]
[310173751,1704388265635,-5986.81,0.00033698,2]
[310173752,1704388265644,-500.0,0.00033698,2]
[310173753,1704388265654,-500.0,0.00033698,2]
[310173754,1704388265663,-500.0,0.00033698,2]
[310173755,1704388265673,-500.0,0.00033698,2]
[310173756,1704388265683,-500.0,0.00033698,2]
[310173757,1704388265693,-500.0,0.00033698,2]
[310173758,1704388265702,-500.0,0.00033698,2]
[310173759,1704388265712,-500.0,0.00033698,2]
[310173760,1704388265722,-1470.87,0.00033698,2]
[310173761,1704388265731,-602.55,0.00033698,2]
[310173762,1704388265741,-500.0,0.00033698,2]
[310173763,1704388265751,-329.38829206,0.00033698,2]
[310173764,1704388265761,-500.0,0.00033698,2]
[310173765,1704388265771,-500.0,0.00033698,2]
[310173766,1704388265781,-500.0,0.00033698,2]
[310173767,1704388265791,-764.44,0.00033698,2]
[310173768,1704388265801,-500.0,0.00033698,2]
[310173769,1704388265811,-500.0,0.00033698,2]
[310173770,1704388265821,-743.47,0.00033698,2]
[310173771,1704388265831,-500.0,0.00033698,2]
[310173772,1704388265841,-500.0,0.00033698,2]
[310173773,1704388265851,-500.0,0.00033698,2]
[310173774,1704388265860,-500.0,0.00033698,2]
[310173775,1704388265871,-1669.92,0.00033698,2]
[310173776,1704388265881,-500.0,0.00033698,2]
[310173777,1704388265891,-1394.05,0.00033698,2]
[310173778,1704388265901,-571.07,0.00033698,2]
[310173779,1704388265910,-875.91,0.00033698,2]
[310173780,1704388265920,-500.0,0.00033698,2]
[310173781,1704388265930,-1267.35,0.00033698,2]
[310173782,1704388265939,-1580.14,0.00033698,2]
[310173783,1704388265949,-500.0,0.00033698,2]
[310173784,1704388265958,-500.0,0.00033698,2]
[310173785,1704388265968,-709.98,0.00033698,2]
[310173786,1704388265978,-170.73580689,0.00033698,2]
[310173787,1704388265987,-500.0,0.00033698,2]
[310173788,1704388265996,-500.0,0.00033698,2]
[310173789,1704388266006,-1191.65,0.00033698,2]
[310173790,1704388266016,-1047.43,0.00033698,2]
[310173791,1704388266027,-2226.92,0.00033698,2]
[310173792,1704388266036,-810.46,0.00033698,2]
[310173793,1704388266045,-500.0,0.00033698,2]
[310173794,1704388266055,-500.0,0.00033698,2]
[310173795,1704388266065,-500.0,0.00033698,2]
[310173796,1704388266074,-500.0,0.00033698,2]
[310173797,1704388266084,-863.65,0.00033698,2]
[310173798,1704388266094,-903.39,0.00033698,2]
[310173799,1704388266103,-1968.05,0.00033698,2]
[310173800,1704388266114,-500.0,0.00033698,2]
[310173801,1704388266123,-1034.79,0.00033698,2]
[310173802,1704388266134,-500.0,0.00033698,2]
[310173803,1704388266143,-854.18,0.00033698,2]
[310173804,1704388266153,-765.48,0.00033698,2]
[310173805,1704388266163,-500.0,0.00033698,2]
[310173806,1704388266173,-10009.45,0.00033698,2]
[310173807,1704388266183,-500.0,0.00033698,2]
[310173808,1704388266192,-543.55860099,0.00033698,2]
[310173809,1704388266202,-500.0,0.00033698,2]
[310173810,1704388266211,-9363.57,0.00033698,2]
[310173811,1704388266221,-2153.91,0.00033698,2]
[310173812,1704388266231,-500.0,0.00033698,2]
[310173813,1704388266241,-500.0,0.00033698,2]
[310173814,1704388266251,-3003.06,0.00033698,2]
[310173815,1704388266260,-738.74,0.00033698,2]
[310173816,1704388266270,-500.0,0.00033698,2]
[310173817,1704388266280,-1165.67,0.00033698,2]
[310173818,1704388266289,-713.89,0.00033698,2]
[310173819,1704388266299,-2572.02,0.00033698,2]
[310173820,1704388266309,-500.0,0.00033698,2]
[310173821,1704388266318,-773.97,0.00033698,2]
[310173822,1704388266328,-1215.87,0.00033698,2]
[310173823,1704388266338,-690.72,0.00033698,2]
[310173824,1704388266348,-500.0,0.00033698,2]
[310173825,1704388266358,-500.0,0.00033698,2]
[310173826,1704388266368,-500.0,0.00033698,2]
[310173827,1704388266378,-500.0,0.00033698,2]
[310173828,1704388266388,-2022.6,0.00033698,2]
[310173829,1704388266398,-500.0,0.00033698,2]
[310173830,1704388266407,-573.39,0.00033698,2]
[310173831,1704388266416,-696.7,0.00033698,2]
[310173832,1704388266426,-1226.56,0.00033698,2]
[310173833,1704388266436,-500.0,0.00033698,2]
[310173834,1704388266445,-2937.67,0.00033698,2]
[310173835,1704388266455,-500.0,0.00033698,2]
[310173836,1704388266464,-635.58,0.00033698,2]
[310173837,1704388266474,-545.79,0.00033698,2]
[310173838,1704388266483,-383.67206125,0.00033698,2]
[310173839,1704388266493,-1426.17,0.00033698,2]
[310173840,1704388266503,-500.0,0.00033698,2]
[310173841,1704388266513,-500.0,0.00033698,2]
[310173842,1704388266522,-3513.29,0.00033698,2]
[310173843,1704388266532,-1647.62,0.00033698,2]
[310173844,1704388266541,-606.05,0.00033698,2]
[310173845,1704388266551,-541.67,0.00033698,2]
[310173846,1704388266560,-1244.46,0.00033698,2]
[310173847,1704388266570,-500.0,0.00033698,2]
[310173848,1704388266579,-500.0,0.00033698,2]
[310173849,1704388266589,-500.0,0.00033698,2]
[310173850,1704388266599,-500.0,0.00033698,2]
[310173851,1704388266608,-1020.73,0.00033698,2]
[310173852,1704388266619,-575.65,0.00033698,2]
[310173853,1704388266629,-2619.15,0.00033698,2]
[310173854,1704388266639,-556.35,0.00033698,2]
[310173855,1704388266648,-578.92,0.00033698,2]
[310173856,1704388266658,-1172.77,0.00033698,2]
[310173857,1704388266667,-682.18,0.00033698,2]
[310173858,1704388266677,-663.84,0.00033698,2]
[310173859,1704388266687,-1180.84,0.00033698,2]
[310173860,1704388266696,-151.0,0.00033698,7]
[310173861,1704388266707,-254.89968,0.00033698,7]
[310173862,1704388266717,-151.0,0.00033698,7]
[310173863,1704388266726,-1000.0,0.000337,2]
[310173864,1704388266736,-216.21,0.00033749,2]
[310173865,1704388266745,-1359.92350397,0.00033775,2]
[310173866,1704388266757,-1236.52578682,0.00033808,2]
[310173867,1704388266766,-666.57,0.00033856,2]
[310173868,1704388266776,-150.0,0.000339,23]
[310173869,1704388266785,-4052.79502222,0.00033901,6]
[310173870,1704388266794,-173.76,0.00033969,2]
[310173871,1704388266804,-292.54489122,0.00033969,2]
[310173872,1704388266814,-1408.57786975,0.0003397,4]
[310173873,1704388266823,-201.30584594,0.00033971,4]
[310173874,1704388266833,-693.08189992,0.00033971,4]
[310173875,1704388266843,-500.0,0.00033971,2]
[310173876,1704388266853,-500.0,0.00033971,2]
[310173877,1704388266863,-500.0,0.00033971,2]
[310173878,1704388266872,-500.0,0.00033971,2]
[310173879,1704388266882,-1999.03,0.00033971,2]
[310173880,1704388266891,-1999.03,0.00033971,2]
[310173881,1704388266901,-500.0,0.00033971,2]
[310173882,1704388266911,-500.0,0.00033971,2]
[310173883,1704388266920,-500.0,0.00033972,2]
[310173884,1704388266930,-500.0,0.00033972,2]
[310173885,1704388266939,-500.0,0.00033972,2]
[310173886,1704388266949,-562.25,0.00033972,2]
[310173887,1704388266959,-298.76794848,0.00033972,2]
[310173888,1704388266970,-395.16793,0.00033972,2]
[310173889,1704388266982,-500.0,0.00033972,2]
[310173890,1704388266992,-153.98,0.00033972,2]
[310173891,1704388267002,-500.0,0.00033972,2]
[310173892,1704388267011,-500.0,0.00033972,2]
[310173893,1704388267022,-500.0,0.00033972,2]
[310173894,1704388267032,-500.0,0.00033972,2]
[310173895,1704388267041,-500.0,0.00033972,2]
[310173896,1704388267051,-309.52,0.00033972,2]
[310173897,1704388267063,-500.0,0.00033972,2]
[310173898,1704388267073,-500.0,0.00033972,2]
[310173899,1704388267083,-500.0,0.00033972,2]
[310173900,1704388267092,-500.0,0.00033972,2]
[310173901,1704388267101,-500.0,0.00033972,2]
[310173902,1704388267111,-500.0,0.00033972,2]
[310173903,1704388267121,-500.0,0.00033972,2]
[310173904,1704388267130,-562.96,0.00033972,2]
[310173905,1704388267140,-500.0,0.00033972,2]
[310173906,1704388267150,-500.0,0.00033972,2]
[310173907,1704388267159,-500.0,0.00033972,2]
[310173908,1704388267169,-566.17,0.00033972,2]
[310173909,1704388267178,-500.0,0.00033972,2]
[310173910,1704388267188,-591.18,0.00033972,2]
[310173911,1704388267197,-500.0,0.00033972,2]
[310173912,1704388267206,-500.0,0.00033972,2]
[310173913,1704388267216,-500.0,0.00033972,2]
[310173914,1704388267225,-500.0,0.00033972,2]
[310173915,1704388267235,-605.32,0.00033972,2]
[310173916,1704388267306,-277.24834475,0.00033972,2]
[310173917,1704388267316,-500.0,0.00033972,2]
[310173918,1704388267325,-500.0,0.00033972,2]
[310173919,1704388267335,-500.0,0.00033972,2]
[310173920,1704388267344,-500.0,0.00033972,2]
[310173921,1704388267353,-500.0,0.00033972,2]
[310173922,1704388267363,-594.07,0.00033972,2]
[310173923,1704388267372,-500.0,0.00033972,2]
[310173924,1704388267381,-500.0,0.00033972,2]
[310173925,1704388267391,-500.0,0.00033972,2]
[310173926,1704388267400,-500.0,0.00033972,2]
[310173927,1704388267409,-500.0,0.00033972,2]
[310173928,1704388267418,-500.0,0.00033972,2]
[310173929,1704388267426,-306.71,0.00033972,2]
[310173930,1704388267436,-500.0,0.00033972,2]
[310173931,1704388267444,-500.0,0.00033972,2]
[310173932,1704388267453,-500.0,0.00033972,2]
[310173933,1704388267462,-500.0,0.00033972,2]
[310173934,1704388267471,-500.0,0.00033972,2]
[310173935,1704388267480,-500.0,0.00033972,2]
[310173936,1704388267489,-500.0,0.00033972,2]
[310173937,1704388267498,-500.0,0.00033972,2]
[310173938,1704388267507,-500.0,0.00033972,2]
[310173939,1704388267516,-350.18207438,0.00033972,2]
[310173940,1704388267525,-500.0,0.00033972,2]
[310173941,1704388267534,-500.0,0.00033972,2]
[310173942,1704388267542,-629.7,0.00033972,2]
[310173943,1704388267552,-500.0,0.00033972,2]
[310173944,1704388267560,-500.0,0.00033972,2]
[310173945,1704388267569,-500.0,0.00033972,2]
[310173946,1704388267578,-242.12,0.00033972,2]
[310173947,1704388267587,-500.0,0.00033972,2]
[310173948,1704388267596,-500.0,0.00033972,2]
[310173949,1704388267606,-500.0,0.00033972,2]
[310173950,1704388267615,-855.21,0.00033972,2]
[310173951,1704388267624,-500.0,0.00033972,2]
[310173952,1704388267633,-278.99086826,0.00033972,2]
[310173953,1704388267642,-600.57377495,0.00033972,2]
[310173954,1704388267651,-500.0,0.00033972,2]
[310173955,1704388267660,-500.0,0.00033972,2]
[310173956,1704388267670,-185.2543064,0.00033972,2]
[310173957,1704388267679,-500.0,0.00033972,2]
[310173958,1704388267688,-223.95,0.00033972,2]
[310173959,1704388267697,-500.0,0.00033972,2]
[310173960,1704388267706,-286.96779344,0.00033972,2]
[310173961,1704388267715,-500.0,0.00033972,2]
[310173962,1704388267725,-500.0,0.00033972,2]
[310173963,1704388267735,-500.0,0.00033972,2]
[310173964,1704388267744,-297.22982626,0.00033972,2]
[310173965,1704388267753,-500.0,0.00033972,2]
[310173966,1704388267764,-389.05468815,0.00033972,2]
[310173967,1704388267774,-500.0,0.00033972,2]
[310173968,1704388267783,-500.0,0.00033972,2]
[310173969,1704388267792,-500.0,0.00033972,2]
[310173970,1704388267801,-500.0,0.00033972,2]
[310173971,1704388267811,-500.0,0.00033972,2]
[310173972,1704388267820,-500.0,0.00033972,2]
[310173973,1704388267829,-500.0,0.00033972,2]
[310173974,1704388267838,-500.0,0.00033972,2]
[310173975,1704388267848,-500.0,0.00033972,2]
[310173976,1704388267857,-260.53262117,0.00033972,2]
[310173977,1704388267867,-500.0,0.00033972,2]
[310173978,1704388267877,-500.0,0.00033972,2]
[310173979,1704388267886,-500.0,0.00033972,2]